fUST/lending_fUST_20260421
["ID","MTS","AMOUNT","RATE_DAILY","PERIOD"]
[420943361,1776771187194,500.0,0.00025916,120]
[420943362,1776771187446,500.0,0.00025916,120]
[420943363,1776771187841,500.0,0.00025916,120]
[420943364,1776771187953,500.0,0.00025916,120]
[420943365,1776771188183,500.0,0.00025916,120]
[420943366,1776771188415,500.0,0.00025916,120]
[420943367,1776771188642,500.0,0.00025916,120]
[420943368,1776771188877,500.0,0.00025916,120]
[420943369,1776771189109,500.0,0.00025916,120]
[420943370,1776771189345,500.0,0.00025916,120]
[420943371,1776771189593,500.0,0.00025916,120]
[420943372,1776771189839,600.25,0.00025916,120]
[420943373,1776771203108,500.0,0.00025916,120]
[420943374,1776771203336,500.0,0.00025916,120]
[420943375,1776771203561,500.0,0.00025916,120]
[420943376,1776771203797,543.91,0.00025916,120]
[420943378,1776771235027,500.0,0.00025916,120]
[420943379,1776771235255,500.0,0.00025916,120]
[420943380,1776771235527,500.0,0.00025916,120]
[420943381,1776771235734,500.0,0.00025916,120]
[420943382,1776771235963,502.25875089,0.00025916,120]
[420943383,1776771236011,247.70859276,0.00025916,120]
[420943384,1776771240896,500.0,0.00025916,120]
[420943385,1776771241145,500.0,0.00025916,120]
[420943386,1776771243293,617.03797268,0.00025916,120]
[420943387,1776771246181,500.0,0.00025916,120]
[420943388,1776771246423,500.0,0.00025916,120]
[420943389,1776771246662,500.0,0.00025916,120]
[420943390,1776771246908,500.0,0.00025916,120]
[420943391,1776771247146,500.0,0.00025916,120]
[420943392,1776771247381,500.0,0.00025916,120]
[420943393,1776771247613,500.0,0.00025916,120]
[420943394,1776771247860,500.0,0.00025916,120]
[420943395,1776771248096,500.0,0.00025916,120]
[420943396,1776771248580,308.89,0.00025916,120]
[420943397,1776771258868,500.0,0.00025916,120]
[420943398,1776771259116,500.0,0.00025916,120]
[420943399,1776771259338,500.0,0.00025916,120]
[420943400,1776771259570,500.0,0.00025916,120]
[420943401,1776771259840,500.0,0.00025916,120]
[420943402,1776771260094,500.0,0.00025916,120]
[420943403,1776771260356,500.0,0.00025916,120]
[420943404,1776771260591,500.0,0.00025916,120]
[420943405,1776771260821,500.0,0.00025916,120]
[420943406,1776771261044,500.0,0.00025916,120]
[420943407,1776771261268,500.0,0.00025916,120]
[420943408,1776771261491,500.0,0.00025916,120]
[420943409,1776771261724,442.91,0.00025916,120]
[420943410,1776771263680,500.0,0.00025916,120]
[420943411,1776771263936,500.0,0.00025916,120]
[420943412,1776771264137,263.46,0.00025916,120]
[420943413,1776771264851,500.0,0.00025916,120]
[420943414,1776771265077,500.0,0.00025916,120]
[420943415,1776771265303,500.0,0.00025916,120]
[420943416,1776771265535,400.16,0.00025916,120]
[420943417,1776771270382,500.0,0.00025916,120]
[420943418,1776771270605,500.0,0.00025916,120]
[420943419,1776771270834,500.0,0.00025916,120]
[420943420,1776771271058,500.0,0.00025916,120]
[420943421,1776771271356,500.0,0.00025916,120]
[420943422,1776771271547,476.76,0.00025916,120]
[420943423,1776771275182,527.59949679,0.00025916,120]
[420943424,1776771288245,501.59989743,0.00025916,120]
[420943425,1776771315206,614.34503648,0.00025916,120]
[420943426,1776771318803,500.88672803,0.00025916,120]
[420943427,1776771372046,933.49,0.0002593,120]
[420943428,1776771372261,933.49,0.0002593,120]
[420943429,1776771372479,933.49,0.0002593,120]
[420943430,1776771372734,933.49,0.0002593,120]
[420943431,1776771372995,933.49,0.0002593,120]
[420943432,1776771373239,933.49,0.0002593,120]
[420943433,1776771373463,933.49,0.0002593,120]
[420943434,1776771373708,933.49,0.0002593,120]
[420943435,1776771373935,933.49,0.0002593,120]
[420943436,1776771374153,933.49,0.0002593,120]
[420943437,1776771374843,933.49,0.0002593,120]
[420943438,1776771375072,933.49,0.0002593,120]
[420943439,1776771375332,933.49,0.0002593,120]
[420943440,1776771375592,933.49,0.0002593,120]
[420943441,1776771375854,933.49,0.0002593,120]
[420943442,1776771376223,933.49,0.0002593,120]
[420943443,1776771376320,933.49,0.0002593,120]
[420943444,1776771376578,933.49,0.0002593,120]
[420943445,1776771376809,933.49,0.0002593,120]
[420943446,1776771377035,933.49,0.0002593,120]
[420943447,1776771377267,933.49,0.0002593,120]
[420943448,1776771377519,933.49,0.0002593,120]
[420943449,1776771377757,933.49,0.0002593,120]
[420943450,1776771377991,933.69706418,0.0002593,120]
[420943451,1776771380709,508.14680436,0.0002593,120]
[420943452,1776771381957,509.09322326,0.0002593,120]
[420943453,1776771383745,591.43,0.0002593,120]
[420943454,1776771383977,591.43,0.0002593,120]
[420943455,1776771384200,591.43,0.0002593,120]
[420943456,1776771384431,591.43,0.0002593,120]
[420943457,1776771384838,591.43,0.0002593,120]
[420943458,1776771384912,591.43,0.0002593,120]
[420943459,1776771385145,591.43,0.0002593,120]
[420943460,1776771385380,591.43,0.0002593,120]
[420943461,1776771385619,591.43,0.0002593,120]
[420943462,1776771385843,591.43,0.0002593,120]
[420943463,1776771386078,591.43,0.0002593,120]
[420943464,1776771386388,591.43,0.0002593,120]
[420943465,1776771386541,591.43,0.0002593,120]
[420943466,1776771386773,591.43,0.0002593,120]
[420943467,1776771387004,591.43,0.0002593,120]
[420943468,1776771387262,591.43,0.0002593,120]
[420943469,1776771387501,591.43,0.0002593,120]
[420943470,1776771387990,591.43,0.0002593,120]
[420943471,1776771388212,591.43,0.0002593,120]
[420943472,1776771388797,591.43,0.0002593,120]
[420943473,1776771389017,591.43,0.0002593,120]
[420943474,1776771389245,500.0,0.0002593,120]
[420943475,1776771389295,591.43,0.0002593,120]
[420943476,1776771389490,591.43,0.0002593,120]
[420943477,1776771389540,500.0,0.0002593,120]
[420943478,1776771389719,591.54855119,0.0002593,120]
[420943479,1776771389769,500.0,0.0002593,120]
[420943480,1776771389956,500.0,0.0002593,120]
[420943481,1776771390191,500.0,0.0002593,120]
[420943482,1776771390422,185.83,0.0002593,120]
[420943483,1776771401107,500.0,0.0002593,120]
[420943484,1776771401368,500.0,0.0002593,120]
[420943485,1776771401596,500.0,0.0002593,120]
[420943486,1776771401827,557.16,0.0002593,120]
[420943487,1776771406873,500.0,0.0002593,120]
[420943488,1776771407098,500.0,0.0002593,120]
[420943489,1776771407333,500.0,0.0002593,120]
[420943490,1776771407588,500.0,0.0002593,120]
[420943491,1776771407821,500.0,0.0002593,120]
[420943492,1776771408065,500.0,0.0002593,120]
[420943493,1776771408294,500.0,0.0002593,120]
[420943494,1776771408574,500.0,0.0002593,120]
[420943495,1776771408806,484.20307183,0.0002593,120]
[420943496,1776771410474,500.0,0.0002593,120]
[420943497,1776771410818,500.0,0.0002593,120]
[420943498,1776771411230,500.0,0.0002593,120]
[420943499,1776771411287,500.0,0.0002593,120]
[420943500,1776771411513,500.0,0.0002593,120]
[420943501,1776771411734,500.0,0.0002593,120]
[420943502,1776771411970,500.0,0.0002593,120]
[420943503,1776771412199,500.0,0.0002593,120]
[420943504,1776771412434,500.0,0.0002593,120]
[420943505,1776771412674,500.0,0.0002593,120]
[420943506,1776771412988,500.0,0.0002593,120]
[420943507,1776771413214,500.0,0.0002593,120]
[420943508,1776771413438,500.0,0.0002593,120]
[420943509,1776771413669,500.0,0.0002593,120]
[420943510,1776771414241,500.0,0.0002593,120]
[420943511,1776771414479,500.0,0.0002593,120]
[420943512,1776771414771,500.0,0.0002593,120]
[420943513,1776771415030,623.34,0.0002593,120]
[420943514,1776771632430,502.6303362,0.0002593,120]
[420943515,1776771745264,500.0,0.00025931,120]
[420943516,1776771745491,500.0,0.00025931,120]
[420943517,1776771745723,168.28,0.00025931,120]
[420943518,1776771779114,600.0,0.00024611,120]
[420943519,1776771813471,5000.0,6e-05,10]
[420943520,1776771835418,5000.0,6e-05,10]
[420943521,1776771839113,600.0,0.00024611,120]
[420943522,1776771855827,7777.44292158,0.00025931,120]
[420943524,1776771857099,5000.0,6e-05,10]
[420943525,1776771878714,5000.0,6e-05,10]
[420943526,1776771899119,600.0,0.00024611,120]
[420943527,1776771900809,1738.38422946,5e-05,10]
[420943528,1776771912353,500.0,0.00025931,120]
[420943529,1776771912412,567.54,0.00025931,120]
[420943530,1776771930299,7124.95918848,0.00024649,120]
[420943531,1776771935007,505.09080599,0.00025931,120]
[420943532,1776771959312,600.0,0.00024565,120]
[420943533,1776771981484,684.46,0.00025931,120]
[420943534,1776771981709,684.46,0.00025931,120]
[420943535,1776771982111,684.46,0.00025931,120]
[420943536,1776771982353,684.46,0.00025931,120]
[420943537,1776771982584,684.46,0.00025931,120]
[420943538,1776771982816,684.46,0.00025931,120]
[420943539,1776771983045,684.46,0.00025931,120]
[420943540,1776771983274,684.46,0.00025931,120]
[420943541,1776771983513,684.46,0.00025931,120]
[420943542,1776771983740,684.46,0.00025931,120]
[420943543,1776771983977,684.46,0.00025931,120]
[420943544,1776771984220,684.46,0.00025931,120]
[420943545,1776771984465,684.46,0.00025931,120]
[420943546,1776771984723,684.46,0.00025931,120]
[420943547,1776771984951,684.46,0.00025931,120]
[420943548,1776771985359,684.46,0.00025931,120]
[420943549,1776771985595,684.46,0.00025931,120]
[420943550,1776771986124,684.46,0.00025931,120]
[420943551,1776771986477,684.46,0.00025931,120]
[420943552,1776771986596,684.46,0.00025931,120]
[420943553,1776771986839,684.46,0.00025931,120]
[420943554,1776771987084,684.46,0.00025931,120]
[420943555,1776771987287,684.46,0.00025931,120]
[420943556,1776771987510,684.634336,0.00025931,120]
[420943557,1776772019213,600.0,0.00024565,120]
[420943558,1776772044704,278.94784667,0.00025931,120]
[420943559,1776772049463,571.4659639,0.00025931,120]
[420943560,1776772050491,507.45484839,0.00025931,120]
[420943561,1776772052674,500.74651601,0.00025931,120]
[420943562,1776772056670,580.0057378,0.00025931,120]
[420943563,1776772079159,600.0,0.00024565,120]
[420943564,1776772125972,1015.03276455,5e-05,10]
[420943565,1776772139179,600.0,0.00024611,120]
[420943568,1776772232824,-165.095319,4.611e-05,2]
[420943569,1776772232834,-304.65247729,5.764e-05,2]
[420943570,1776772232878,-27.07652017,5.764e-05,2]
[420943571,1776772232887,-391.44021701,7.764e-05,2]
[420943572,1776772232897,-165.095319,9.222e-05,2]
[420943573,1776772232906,-965.59862194,9.682e-05,2]
[420943574,1776772232918,-137.84757212,9.682e-05,2]
[420943575,1776772232927,-143.83110178,9.764e-05,2]
[420943638,1776772239531,-307.32033477,9.764e-05,2]
[420943639,1776772239540,-635.74466523,9.782e-05,2]
[420943640,1776772239689,-1537.23126588,9.782e-05,2]
[420943641,1776772239699,-654.84485796,9.881e-05,2]
[420943650,1776772241215,-381.21178026,9.881e-05,2]
[420943669,1776772244798,-163.94336178,9.881e-05,2]
[420943670,1776772244809,-3242.50566816,9.882e-05,2]
[420943671,1776772244819,-300.0,9.98e-05,2]
[420943672,1776772244829,-300.0,9.98e-05,2]
[420943673,1776772244839,-3594.10349181,9.982e-05,2]
[420943674,1776772244848,-300.0,9.999e-05,2]
[420943675,1776772244858,-300.0,0.00010046,2]
[420943676,1776772244868,-300.0,0.00010046,2]
[420943677,1776772244877,-300.0,0.00010046,2]
[420943678,1776772244886,-300.0,0.00010046,2]
[420943679,1776772244896,-300.0,0.00010046,2]
[420943680,1776772244906,-300.0,0.00010046,2]
[420943681,1776772244916,-300.0,0.00010046,2]
[420943682,1776772244925,-300.0,0.00010046,2]
[420943683,1776772244935,-300.0,0.00010046,2]
[420943684,1776772244945,-300.0,0.00010046,2]
[420943685,1776772244955,-300.0,0.00010046,2]
[420943686,1776772244964,-300.0,0.00010046,2]
[420943687,1776772244974,-300.0,0.00010046,2]
[420943688,1776772244983,-300.0,0.00010046,2]
[420943689,1776772244993,-300.0,0.00010046,2]
[420943690,1776772245003,-4276.99017252,0.00010082,2]
[420943691,1776772245012,-4312.03540521,0.00010182,2]
[420943692,1776772245021,-600.0,0.00010246,2]
[420943693,1776772245031,-4959.87685335,0.00010282,2]
[420943694,1776772245040,-436.81273723,0.00010517,2]
[420943695,1776772245050,-151.5,0.0001076,2]
[420943696,1776772245059,-500.0,0.00010773,2]
[420943697,1776772245068,-283.31415785,0.00010773,2]
[420943698,1776772245077,-500.0,0.00010773,2]
[420943699,1776772245087,-517.82386226,0.00010773,2]
[420943700,1776772245096,-500.0,0.00010773,2]
[420943701,1776772245105,-500.0,0.00010773,2]
[420943702,1776772245115,-504.08098632,0.00010773,2]
[420943703,1776772245124,-235.05871537,0.00010773,2]
[420943704,1776772245134,-515.1570556,0.00010773,2]
[420943705,1776772245143,-503.82690547,0.00010773,2]
[420943706,1776772245152,-598.46621188,0.00010797,2]
[420943707,1776772245162,-500.0,0.00010797,2]
[420943708,1776772245171,-500.0,0.00010797,2]
[420943709,1776772245180,-500.0,0.00010797,2]
[420943710,1776772245190,-500.0,0.00010797,2]
[420943711,1776772245199,-500.0,0.00010797,2]
[420943712,1776772245208,-500.0,0.00010797,2]
[420943713,1776772245218,-500.0,0.00010797,2]
[420943714,1776772245227,-500.0,0.00010797,2]
[420943715,1776772245236,-500.0,0.00010797,2]
[420943716,1776772245247,-500.0,0.00010797,2]
[420943717,1776772245256,-500.0,0.00010797,2]
[420943718,1776772245265,-500.0,0.00010797,2]
[420943719,1776772245276,-500.0,0.00010797,2]
[420943720,1776772245285,-500.0,0.00010797,2]
[420943721,1776772245294,-500.0,0.00010797,2]
[420943722,1776772245304,-500.0,0.00010797,2]
[420943723,1776772245313,-500.0,0.00010797,2]
[420943724,1776772245322,-500.0,0.00010797,2]
[420943725,1776772245332,-350.73706432,0.00010797,2]
[420943726,1776772245341,-500.0,0.00010797,2]
[420943727,1776772245350,-561.57919314,0.00010797,2]
[420943728,1776772245360,-500.0,0.00010797,2]
[420943729,1776772245370,-500.0,0.00010797,2]
[420943730,1776772245379,-500.0,0.00010797,2]
[420943731,1776772245389,-500.0,0.00010797,2]
[420943732,1776772245398,-500.0,0.00010797,2]
[420943733,1776772245408,-500.0,0.00010797,2]
[420943734,1776772245417,-500.0,0.00010797,2]
[420943735,1776772245426,-500.0,0.00010797,2]
[420943736,1776772245435,-500.0,0.00010797,2]
[420943737,1776772245445,-500.0,0.00010797,2]
[420943738,1776772245455,-500.0,0.00010797,2]
[420943739,1776772245465,-500.0,0.00010797,2]
[420943740,1776772245474,-211.60781013,0.00010797,2]
[420943758,1776772246955,-288.39218987,0.00010797,2]
[420943760,1776772246965,-500.0,0.00010797,2]
[420943762,1776772246974,-447.04914173,0.00010798,2]
[420943764,1776772246983,-849.9963484,0.00010798,2]
[420943766,1776772246992,-849.9963484,0.00010798,2]
[420943767,1776772247002,-849.9963484,0.00010798,2]
[420943768,1776772247011,-849.9963484,0.00010798,2]
[420943769,1776772247020,-849.9963484,0.00010798,2]
[420943770,1776772247029,-849.9963484,0.00010798,2]
[420943771,1776772247039,-849.9963484,0.00010798,2]
[420943772,1776772247048,-849.9963484,0.00010798,2]
[420943773,1776772247058,-849.9963484,0.00010798,2]
[420943774,1776772247067,-849.9963484,0.00010798,2]
[420943775,1776772247077,-849.9963484,0.00010798,2]
[420943776,1776772247086,-849.9963484,0.00010798,2]
[420943777,1776772247095,-849.9963484,0.00010798,2]
[420943778,1776772247104,-849.9963484,0.00010798,2]
[420943779,1776772247114,-849.9963484,0.00010798,2]
[420943780,1776772247124,-849.9963484,0.00010798,2]
[420943781,1776772247134,-849.9963484,0.00010798,2]
[420943782,1776772247144,-989.31168397,0.00010798,2]
[420943783,1776772247153,-989.31168397,0.00010798,2]
[420943784,1776772247162,-989.31168397,0.00010798,2]
[420943785,1776772247172,-989.31168397,0.00010798,2]
[420943786,1776772247182,-156.73,0.00010798,2]
[420943787,1776772247191,-14317.34613773,0.00010799,2]
[420943789,1776772247208,-355.3,0.00010799,2]
[420943817,1776772817523,2169.54,0.00025933,120]
[420943818,1776772817747,2169.54,0.00025933,120]
[420943819,1776772818044,2169.54,0.00025933,120]
[420943820,1776772818279,2169.54,0.00025933,120]
[420943821,1776772818733,2169.54,0.00025933,120]
[420943822,1776772818982,2169.54,0.00025933,120]
[420943823,1776772819205,2169.54,0.00025933,120]
[420943824,1776772819440,2169.54,0.00025933,120]
[420943825,1776772819705,2169.54,0.00025933,120]
[420943826,1776772819933,2169.54,0.00025933,120]
[420943827,1776772820162,2169.54,0.00025933,120]
[420943828,1776772820416,2169.54,0.00025933,120]
[420943829,1776772820658,2169.54,0.00025933,120]
[420943830,1776772820884,2169.54,0.00025933,120]
[420943831,1776772821118,2169.54,0.00025933,120]
[420943832,1776772821369,2169.54,0.00025933,120]
[420943833,1776772821738,2169.54,0.00025933,120]
[420943834,1776772821844,2169.54,0.00025933,120]
[420943835,1776772822128,2169.54,0.00025933,120]
[420943836,1776772822347,2169.54,0.00025933,120]
[420943837,1776772822578,2169.54,0.00025933,120]
[420943838,1776772822818,2169.54,0.00025933,120]
[420943839,1776772823054,2169.54,0.00025933,120]
[420943840,1776772823278,2169.70076457,0.00025933,120]
[420943842,1776772862069,-4402.86144674,7.6e-05,2]
[420943843,1776772863684,183.03,0.00023288,120]
[420943845,1776773326866,10000.0,0.00024658,120]
[420943850,1776773431837,-5000.0,7.374e-05,10]
[420943851,1776773431846,-312.15300797,7.467e-05,2]
[420943852,1776773431855,-527.0,7.561e-05,2]
[420943853,1776773431864,-300.0,7.599e-05,2]
[420943854,1776773431874,-1200.0,7.599e-05,2]
[420943855,1776773431883,-3641.58000372,7.6e-05,2]
[420943856,1776773431894,-2251.31959154,7.6e-05,2]
[420943859,1776773431905,-850.15084257,7.6e-05,2]
[420943861,1776773431916,-1288.87708307,7.6e-05,2]
[420944131,1776773438813,-6438.21103236,7.6e-05,2]
[420944132,1776773438823,-716.92706555,7.751e-05,2]
[420944133,1776773438833,-300.0,7.751e-05,2]
[420944134,1776773438842,-300.0,7.751e-05,2]
[420944135,1776773438851,-300.0,7.751e-05,2]
[420944136,1776773438861,-300.0,7.751e-05,2]
[420944137,1776773438870,-300.0,7.751e-05,2]
[420944138,1776773438879,-300.0,7.751e-05,2]
[420944139,1776773438889,-300.0,7.751e-05,2]
[420944140,1776773438898,-300.0,7.751e-05,2]
[420944141,1776773438908,-300.0,7.751e-05,2]
[420944142,1776773438918,-300.0,7.751e-05,2]
[420944143,1776773438927,-300.0,7.751e-05,2]
[420944144,1776773438937,-300.0,7.751e-05,2]
[420944145,1776773438946,-300.0,7.751e-05,2]
[420944146,1776773438955,-300.0,7.751e-05,2]
[420944147,1776773438965,-300.0,7.751e-05,2]
[420944148,1776773438976,-600.0,7.905e-05,2]
[420944149,1776773438985,-320.6914202,8.2e-05,2]
[420944150,1776773438995,-420.0,8.359e-05,2]
[420944151,1776773439005,-1680.0,8.359e-05,2]
[420944152,1776773439015,-720.0,8.696e-05,2]
[420944153,1776773439024,-470.034319,9.081e-05,2]
[420944154,1776773439033,-275.0,9.195e-05,2]
[420944155,1776773439042,-470.034319,9.464e-05,2]
[420944156,1776773439051,-368.34054941,9.467e-05,2]
[420944157,1776773439060,-864.0,9.565e-05,2]
[420944158,1776773439069,-470.034319,9.846e-05,2]
[420944159,1776773439079,-237.91,0.00010034,2]
[420944160,1776773439089,-470.034319,0.00010228,2]
[420944161,1776773439099,-500.0,0.00010372,2]
[420944162,1776773439108,-500.0,0.00010372,2]
[420944163,1776773439118,-500.0,0.00010372,2]
[420944164,1776773439128,-500.0,0.00010372,2]
[420944165,1776773439137,-264.68067468,0.00010372,2]
[420944166,1776773439147,-231.0686771,0.00010486,2]
[420944167,1776773439156,-1954.5447256,0.00010514,2]
[420944168,1776773439165,-738.9187692,0.00010514,2]
[420944169,1776773439174,-1000.0,0.00010522,2]
[420944170,1776773439184,-500.0,0.00010573,2]
[420944171,1776773439193,-500.0,0.00010573,2]
[420944172,1776773439202,-500.0,0.00010573,2]
[420944173,1776773439212,-500.0,0.00010573,2]
[420944174,1776773439221,-500.0,0.00010573,2]
[420944175,1776773439230,-500.0,0.00010573,2]
[420944176,1776773439239,-500.0,0.00010573,2]
[420944177,1776773439248,-297.60207465,0.00010573,2]
[420944178,1776773439258,-500.0,0.00010597,2]
[420944179,1776773439269,-594.52634048,0.00010597,2]
[420944180,1776773439278,-500.0,0.00010597,2]
[420944181,1776773439287,-340.1754659,0.00010597,2]
[420944182,1776773439297,-312.93439921,0.00010597,2]
[420944183,1776773439306,-656.5838826,0.00010597,2]
[420944184,1776773439316,-656.5838826,0.00010597,2]
[420944185,1776773439325,-656.5838826,0.00010597,2]
[420944186,1776773439334,-656.5838826,0.00010597,2]
[420944187,1776773439344,-656.5838826,0.00010597,2]
[420944188,1776773439353,-656.5838826,0.00010597,2]
[420944189,1776773439362,-656.5838826,0.00010597,2]
[420944190,1776773439371,-656.5838826,0.00010597,2]
[420944191,1776773439379,-656.5838826,0.00010597,2]
[420944192,1776773439388,-656.5838826,0.00010597,2]
[420944193,1776773439398,-656.5838826,0.00010597,2]
[420944194,1776773439407,-656.5838826,0.00010597,2]
[420944195,1776773439416,-656.5838826,0.00010597,2]
[420944196,1776773439425,-656.5838826,0.00010597,2]
[420944197,1776773439434,-656.5838826,0.00010597,2]
[420944198,1776773439443,-656.5838826,0.00010597,2]
[420944199,1776773439452,-63407.67663808,0.00010598,2]
[420944200,1776773439461,-14414.32044284,0.00010599,2]
[420944201,1776773439478,-988.84066671,0.00010599,2]
[420944202,1776773439489,-43588.3209793,0.00010599,2]
[420944203,1776773439503,-952.97724851,0.00010599,2]
[420944210,1776773440399,-1019.05201729,0.00010599,2]
[420944211,1776773440453,-6307.32301141,0.00010599,2]
[420944223,1776773443039,-468.942,0.00010599,2]
[420944224,1776773443051,-5352.49999837,0.00010599,2]
[420944225,1776773443199,-1179.67946753,0.00010599,2]
[420944227,1776773443211,-3256.23330091,0.00010599,2]
[420944239,1776773446139,-46204.40261382,0.00010599,2]
[420944240,1776773446193,-31246.11401575,0.00010599,2]
[420944241,1776773446247,-276.5150003,0.00010599,2]
[420944242,1776773446303,-407.47658965,0.00010599,2]
[420944243,1776773446314,-74259.82848203,0.00010599,2]
[420944262,1776773453934,296.81728312,0.00010599,30]
[420944263,1776773454890,445.22592469,0.00010673,30]
[420944265,1776773648998,945.09200369,0.00025933,120]
[420944266,1776773688360,5005.44,0.00025933,120]
[420944287,1776774416360,2214.22677122,5e-05,10]
[420944328,1776774632078,-191.5907508,4.242e-05,2]
[420944330,1776774632088,-1805.1280351,5e-05,2]
[420944332,1776774632097,-251.93589074,5.605e-05,2]
[420944334,1776774632107,-1796.94076372,5.933e-05,2]
[420944337,1776774632118,-1801.43607074,5.933e-05,2]
[420944339,1776774632127,-307.18904488,6.452e-05,2]
[420944341,1776774632136,-2725.27128742,6.867e-05,2]
[420944343,1776774632147,-1092.16494845,6.867e-05,2]
[420944345,1776774632157,-300.0,7.797e-05,2]
[420944347,1776774632166,-3607.84007015,7.8e-05,2]
[420944349,1776774632177,-500.73728512,7.8e-05,2]
[420944351,1776774632186,-300.0,7.955e-05,2]
[420944353,1776774632196,-300.0,7.955e-05,2]
[420944355,1776774632205,-300.0,7.955e-05,2]
[420944357,1776774632214,-300.0,7.955e-05,2]
[420944359,1776774632224,-300.0,7.955e-05,2]
[420944361,1776774632233,-300.0,7.955e-05,2]
[420944363,1776774632242,-300.0,7.955e-05,2]
[420944365,1776774632252,-300.0,7.955e-05,2]
[420944367,1776774632262,-300.0,7.955e-05,2]
[420944369,1776774632272,-300.0,7.955e-05,2]
[420944371,1776774632282,-300.0,7.955e-05,2]
[420944373,1776774632291,-300.0,7.955e-05,2]
[420944390,1776774632482,-300.0,7.955e-05,2]
[420944393,1776774632497,-300.0,7.955e-05,2]
[420944395,1776774632507,-300.0,7.955e-05,2]
[420944397,1776774632517,-172.92572073,8.149e-05,2]
[420944399,1776774632527,-362.48307296,8.452e-05,2]
[420944400,1776774632536,-4399.71847479,8.734e-05,2]
[420944402,1776774632546,-500.0,9.192e-05,2]
[420944404,1776774632556,-704.014,9.49e-05,2]
[420944406,1776774632565,-189.5850088,9.49e-05,2]
[420944408,1776774632574,-528.37916429,9.499e-05,2]
[420944410,1776774632584,-31169.3894375,9.5e-05,2]
[420944412,1776774632594,-151.0,9.5e-05,2]
[420944414,1776774632604,-4690.85959431,9.667e-05,2]
[420944417,1776774632615,-600.0,9.688e-05,2]
[420944419,1776774632625,-151.5732348,0.0001035,2]
[420944421,1776774632635,-220.2009867,0.00010373,2]
[420944423,1776774632644,-220.20098666,0.00010398,2]
[420944425,1776774632654,-220.20098666,0.00010423,2]
[420944427,1776774632663,-220.20098666,0.00010448,2]
[420944428,1776774632673,-417.77710103,0.00010452,2]
[420944430,1776774632682,-224.77239047,0.00010473,2]
[420944433,1776774632693,-500.90952224,0.00010473,2]
[420944434,1776774632703,-500.0,0.00010473,2]
[420944436,1776774632713,-500.0,0.00010473,2]
[420944438,1776774632725,-158.3370925,0.00010473,2]
[420944440,1776774632734,-158.33239116,0.00010473,2]
[420944443,1776774632745,-158.33185882,0.00010473,2]
[420944444,1776774632754,-220.20098666,0.00010473,2]
[420944446,1776774632764,-151.5,0.00010486,2]
[420944448,1776774632774,-500.0,0.00010486,2]
[420944450,1776774632784,-500.0,0.00010486,2]
[420944452,1776774632794,-500.0,0.00010486,2]
[420944454,1776774632803,-500.0,0.00010486,2]
[420944456,1776774632813,-290.46678279,0.00010486,2]
[420944458,1776774632822,-262.48813613,0.00010486,2]
[420944460,1776774632832,-294.1576586,0.00010496,2]
[420944462,1776774632842,-637.61421728,0.00010496,2]